bitfinex/quotes_ETHUSD_20251117
["timestamp","ask_amount","ask_price","bid_price","bid_amount"]
[1763400880400,0.002,3106.8,3106.2,0.405504]
[1763400880601,0.002,3106.8,3106.1,0.1904]
[1763400881213,0.002,3106.8,3106.0,0.405504]
[1763400881824,0.002,3106.8,3106.0,0.858704]
[1763400882198,0.002,3106.8,3106.2,0.405504]
[1763400882633,0.1981,3106.8,3106.0,0.405504]
[1763400882833,0.1981,3106.8,3105.8,0.405504]
[1763400883199,0.1981,3106.8,3105.8,0.858704]
[1763400883812,0.1981,3106.8,3105.8,0.405504]
[1763400884653,0.002,3106.8,3105.8,0.858704]
[1763400884803,0.002,3106.8,3106.0,0.405504]
[1763400885214,0.002,3106.8,3105.9,0.4532]
[1763400885215,0.002,3106.8,3106.2,0.405504]
[1763400885720,0.002,3106.8,3106.3,0.858704]
[1763400886344,0.4625,3109.9,3107.7,0.405504]
[1763400886711,0.002,3109.9,3107.9,0.405504]
[1763400886909,0.002,3109.9,3106.4,9.67101155]
[1763400886910,0.1961,3107.7,3106.7,0.1961]
[1763400887152,0.1961,3107.7,3105.7,0.1961]
[1763400887153,0.1961,3107.7,3106.4,0.1961]
[1763400887644,0.1961,3108.0,3106.5,0.4532]
[1763400888028,0.4605,3107.9,3106.5,0.4532]
[1763400888353,0.4605,3107.9,3106.4,0.1961]
[1763400889514,0.4605,3107.9,3105.9,0.4532]
[1763400889919,0.4605,3107.9,3106.0,0.405504]
[1763400890124,0.4605,3107.9,3106.2,0.405504]
[1763400890329,0.1961,3108.0,3106.2,0.405504]
[1763400890529,0.4605,3107.9,3106.4,0.405504]
[1763400890817,0.4605,3107.9,3106.6,0.405504]
[1763400891855,0.1796,3106.7,3105.7,0.1961]
[1763400892056,0.1796,3106.7,3105.4,0.1961]
[1763400892276,0.4605,3106.6,3104.5,0.001]
[1763400892560,0.4605,3106.6,3105.2,0.4532]
[1763400892941,0.4605,3106.6,3105.3,0.405504]
[1763400893134,0.4605,3106.6,3105.2,0.4532]
[1763400893571,0.1796,3107.0,3105.2,0.4532]
[1763400893765,0.1796,3107.0,3105.3,0.405504]
[1763400893962,0.1796,3107.0,3105.5,0.405504]
[1763400894490,0.3826169,3107.1,3105.7,0.405504]
[1763400894639,0.1961,3107.0,3105.7,0.405504]
[1763400894839,0.1961,3107.0,3105.9,0.405504]
[1763400895372,0.1961,3107.0,3106.0,0.405504]
[1763400895679,0.1961,3108.0,3106.0,0.405504]
[1763400895988,0.1961,3108.0,3106.2,0.405504]
[1763400896137,0.1961,3108.0,3106.4,0.405504]
[1763400896342,0.1961,3108.0,3106.6,0.405504]
[1763400896538,0.6566,3108.0,3106.6,0.405504]
[1763400896973,0.4605,3107.9,3106.1,0.1829]
[1763400897376,0.4605,3107.9,3106.2,0.405504]
[1763400897673,0.4605,3107.9,3106.1,0.1829]
[1763400898177,0.4605,3107.9,3106.2,0.405504]
[1763400898588,0.4605,3107.9,3106.1,0.1829]
[1763400900042,0.1961,3108.0,3106.3,0.405504]
[1763400900251,0.4605,3107.9,3106.5,0.405504]
[1763400900495,0.4605,3107.9,3106.2,0.4532]
[1763400900814,0.4605,3107.9,3105.9,0.405504]
[1763400901097,0.405504,3107.8,3105.6,0.1961]
[1763400901479,0.1961,3108.0,3105.6,0.1961]
[1763400901480,0.405504,3107.6,3105.6,0.1961]
[1763400901794,0.4605,3107.7,3105.7,0.48539886]
[1763400901953,0.6566,3108.0,3105.8,0.405504]
[1763400902148,0.002,3108.2,3107.9,0.1829]
[1763400902348,0.002,3108.2,3108.0,0.405504]
[1763400902579,0.002,3108.2,3107.9,0.1829]
[1763400902780,0.002,3108.2,3107.6,0.858704]
[1763400902781,0.002,3108.2,3107.7,0.601604]
[1763400902969,0.4625,3108.2,3107.0,0.1829]
[1763400903177,0.002,3108.2,3107.1,0.858704]
[1763400903599,0.002,3108.0,3107.1,0.858704]
[1763400903956,0.002,3108.0,3107.1,0.405504]
[1763400904262,0.1018,3107.9,3107.1,0.405504]
[1763400904520,0.002,3108.0,3107.3,0.405504]
[1763400904694,0.002,3108.0,3107.4,0.4532]
[1763400904902,0.002,3108.0,3107.5,0.405504]
[1763400905266,0.002,3108.0,3107.0,0.1829]
[1763400905267,0.002,3108.0,3107.7,0.405504]
[1763400905475,0.002,3108.0,3107.1,0.900204]
[1763400906008,0.1886,3107.9,3107.0,0.1829]
[1763400906303,0.1886,3107.9,3107.0,0.6776]
[1763400906470,0.002,3108.0,3107.0,0.6776]
[1763400906672,0.002,3108.0,3107.1,0.900204]
[1763400907305,0.002,3108.0,3107.3,0.405504]
[1763400907811,0.002,3108.0,3107.3,0.4947]
[1763400907968,0.002,3108.0,3107.4,0.405504]
[1763400908369,0.1886,3107.9,3107.1,0.900204]
[1763400909030,0.002,3108.0,3107.1,0.4947]
[1763400909344,0.002,3108.0,3107.3,0.405504]
[1763400909787,0.002,3108.0,3107.3,0.4947]
[1763400910179,0.002,3108.0,3107.4,0.405504]
[1763400910434,0.002,3108.0,3107.3,0.4947]
[1763400910988,0.002,3108.0,3107.4,0.03218124]
[1763400911226,0.002,3108.0,3107.5,0.405504]
[1763400911837,0.002,3108.0,3107.6,0.4947]
[1763400912201,0.002,3108.0,3107.7,0.4947]
[1763400913018,0.002,3108.0,3107.5,0.405504]
[1763400913326,0.002,3108.0,3107.0,0.1829]
[1763400913327,0.002,3108.0,3107.2,0.405504]
[1763400913729,0.002,3108.0,3107.3,0.4947]
[1763400914593,0.002,3108.0,3107.0,0.1829]
[1763400914594,0.1886,3107.9,3107.0,0.1829]
[1763400914838,0.002,3108.0,3107.0,0.1829]
[1763400914839,0.002,3108.0,3107.1,0.4947]
[1763400915516,0.002,3108.0,3107.2,0.405504]
[1763400915905,0.002,3108.0,3107.3,0.405504]
[1763400916317,0.1886,3107.9,3107.2,0.4947]
[1763400916505,0.002,3108.0,3107.3,0.405504]
[1763400916919,0.002,3108.0,3107.9,0.4543]
[1763400917137,0.002,3108.0,3107.9,1.354504]
[1763400917333,0.002,3108.2,3107.9,1.61282972]
[1763400917506,0.002,3108.4,3108.3,10.82375004]
[1763400917707,0.002,3108.4,3108.3,11.30945004]
[1763400917894,0.002,3108.4,3108.3,11.76615004]
[1763400918398,0.002,3109.9,3108.4,1.31249664]
[1763400918595,0.4948,3109.8,3108.5,1.58101139]
[1763400918807,0.4948,3109.8,3108.1,0.1851]
[1763400919021,0.4948,3109.8,3108.2,0.405504]
[1763400919402,0.4948,3109.8,3108.4,0.405504]
[1763400919599,0.4948,3109.8,3108.4,0.862204]
[1763400920235,0.4948,3109.8,3108.5,0.4567]
[1763400920438,0.4948,3109.8,3108.2,0.405504]
[1763400920739,0.4948,3109.8,3108.4,0.405504]
[1763400921138,0.0793,3109.9,3108.6,0.405504]
[1763400921339,0.002,3109.8,3108.8,0.405504]
[1763400921544,0.002,3109.8,3108.7,0.4567]
[1763400921844,0.4968,3109.8,3108.2,0.405504]
[1763400922053,0.002,3109.8,3108.5,0.405504]
[1763400922541,0.002,3109.8,3108.7,0.405504]
[1763400922942,0.002,3109.8,3108.9,0.405504]
[1763400923304,0.002,3109.8,3108.1,0.1851]
[1763400923305,0.002,3109.8,3109.1,0.405504]
[1763400923744,0.002,3109.8,3109.3,0.405504]
[1763400923952,0.002,3109.8,3109.7,0.891204]
[1763400924411,0.002,3109.8,3109.7,1.347904]
[1763400924613,0.002,3109.8,3109.7,0.9424]
[1763400924909,0.002,3109.8,3109.7,1.347904]
[1763400928367,0.002,3110.2,3109.8,0.891204]
[1763400928528,0.002,3110.3,3110.2,0.405504]
[1763400928728,0.002,3110.3,3110.2,0.891204]
[1763400928969,0.002,3110.3,3110.2,1.347904]
[1763400929263,0.199,3114.0,3110.2,1.347904]
[1763400929264,0.4948,3112.3,3110.2,1.347904]
[1763400929466,0.4948,3112.3,3110.4,0.891204]
[1763400929667,0.199,3114.0,3110.4,0.891204]
[1763400929668,0.4968,3111.9,3110.4,0.891204]
[1763400929834,0.4968,3111.9,3110.4,1.347904]
[1763400930033,0.002,3111.9,3110.4,1.3800542]
[1763400930234,0.4968,3111.9,3110.4,1.347904]
[1763400930558,0.002,3111.9,3110.4,1.347904]
[1763400931376,0.002,3111.9,3110.1,0.1851]
[1763400931377,0.002,3111.9,3110.5,0.891204]
[1763400931534,0.002,3111.9,3111.4,1.076304]
[1763400931933,0.002,3111.9,3111.4,1.533004]
[1763400934122,0.002,3111.9,3111.5,0.405504]
[1763400934425,0.199,3113.4,3111.9,0.405504]
[1763400934593,0.6938,3113.7,3112.1,0.405504]
[1763400935132,0.4948,3113.6,3111.9,0.1851]
[1763400935438,0.4948,3113.6,3109.4,4.98506904]
[1763400935439,0.4948,3113.6,3111.2,0.4567]
[1763400935598,0.4948,3113.6,3111.2,0.1868]
[1763400935599,0.405504,3113.5,3111.2,0.1868]
[1763400935918,0.405504,3113.5,3111.0,0.1851]
[1763400936218,0.4854,3113.4,3111.0,0.1851]
[1763400936388,0.405504,3113.3,3110.3,0.4526]
[1763400936588,0.405504,3113.3,3110.2,0.4526]
[1763400936589,0.189,3112.0,3110.2,0.4526]
[1763400936975,0.6744,3112.0,3110.2,0.4526]
[1763400937179,0.6744,3112.0,3110.3,0.405504]
[1763400937379,0.4854,3111.9,3110.2,0.4526]
[1763400937802,0.4854,3111.9,3110.1,0.1851]
[1763400938005,0.4854,3111.9,3109.9,0.405504]
[1763400938206,0.4854,3111.9,3110.2,0.405504]
[1763400938410,0.4854,3111.9,3110.1,0.1868]
[1763400939329,0.189,3110.2,3109.2,0.1851]
[1763400939508,0.0995,3109.9,3108.7,0.6394]
[1763400939811,0.0995,3109.9,3108.8,0.4526]
[1763400940446,0.189,3110.4,3108.8,0.4526]
[1763400940940,0.4854,3110.3,3108.8,0.4526]
[1763400941240,0.4854,3110.3,3108.9,0.83923596]
[1763400941598,0.4854,3110.3,3109.0,0.4526]
[1763400941795,0.189,3110.4,3109.0,0.4526]
[1763400941995,0.0995,3111.0,3109.5,0.405504]
[1763400942232,0.0995,3111.0,3109.7,0.405504]
[1763400942531,0.0995,3111.0,3110.1,0.405504]
[1763400942731,0.002,3111.9,3110.1,0.405504]
[1763400942732,0.189,3111.3,3110.1,0.405504]
[1763400942939,0.189,3111.5,3110.6,1.31249664]
[1763400943137,0.002,3111.9,3110.8,0.405504]
[1763400943292,0.002,3111.9,3111.5,0.405504]
[1763400943741,0.002,3111.9,3111.7,0.405504]
[1763400943927,0.002,3111.9,3111.4,0.1868]
[1763400944235,0.002,3111.9,3111.5,0.405504]
[1763400945697,0.6157,3111.8,3110.8,0.405504]
[1763400946133,0.002,3111.9,3111.0,8.15846357]
[1763400946319,0.002,3111.9,3111.2,0.405504]
[1763400947025,0.6177,3111.9,3110.5,7.75295957]
[1763400947211,0.4854,3111.8,3110.6,0.90699264]
[1763400947798,0.189,3110.7,3109.9,7.75295957]
[1763400948704,0.189,3110.7,3110.0,0.90699264]
[1763400948927,0.189,3110.7,3110.0,1.81824786]
[1763400949845,0.189,3110.7,3110.1,0.405504]
[1763400950537,0.6744,3110.7,3110.0,0.91125522]
[1763400950740,0.1323,3111.9,3110.0,0.91125522]
[1763400950741,0.4854,3111.0,3110.2,0.405504]
[1763400951604,0.1323,3111.9,3110.2,0.858104]
[1763400951605,0.4854,3111.5,3110.2,0.858104]
[1763400951817,0.6177,3111.9,3110.7,1.31249664]
[1763400952017,0.6177,3111.9,3110.6,7.75295957]
[1763400952018,0.189,3110.3,3108.0,0.001]
[1763400952223,0.0945,3109.8,3108.6,0.001]
[1763400952656,0.4854,3109.7,3108.6,0.001]
[1763400952883,0.6744,3110.3,3108.7,0.48476778]
[1763400953084,0.6744,3110.3,3108.8,0.82387273]
[1763400953591,0.189,3110.3,3109.3,0.90699264]
[1763400953757,0.4854,3110.2,3109.4,0.405504]
[1763400954775,0.189,3110.3,3109.4,0.405504]
[1763400955488,0.189,3110.3,3108.2,0.63826338]
[1763400955489,0.4854,3110.2,3108.9,0.405504]
[1763400955786,0.189,3109.5,3108.9,0.16819767]
[1763400955986,0.6744,3109.5,3108.8,0.82387273]
[1763400956286,0.189,3109.5,3108.8,0.82387273]
[1763400957967,0.6744,3109.5,3108.8,0.82387273]
[1763400958168,0.189,3109.5,3108.9,0.405504]
[1763400958491,0.189,3110.3,3108.8,0.82387273]
[1763400958492,0.189,3110.3,3109.5,0.405504]
[1763400958784,0.189,3110.3,3109.4,0.1868]
[1763400958996,0.189,3110.6,3109.5,0.405504]
[1763400959283,0.189,3110.6,3109.5,0.858104]
[1763400959888,0.189,3110.6,3109.6,0.4526]
[1763400960598,0.002,3112.3,3110.6,0.405504]
[1763400960599,0.189,3111.4,3110.6,0.405504]
[1763400960897,0.6744,3111.4,3110.0,0.405504]
[1763400961252,0.4854,3111.3,3110.2,0.405504]
[1763400961854,0.189,3110.3,3109.4,0.405504]
[1763400962908,0.189,3111.4,3110.3,0.90699264]
[1763400962909,0.189,3110.7,3110.3,0.90699264]
[1763400963195,0.189,3110.7,3109.2,9.24331203]
[1763400963377,0.189,3110.7,3108.7,0.4526]
[1763400963378,0.189,3109.3,3108.7,9.24331203]
[1763400963565,0.189,3109.3,3108.9,1.00671848]
[1763400963752,0.189,3109.3,3108.7,9.24331203]
[1763400963753,0.6744,3109.3,3108.7,9.24331203]
[1763400963953,0.6744,3109.3,3108.8,0.90699264]
[1763400964221,0.6744,3109.3,3108.7,9.24331203]
[1763400964394,0.6744,3109.3,3108.6,0.90799264]
[1763400964595,0.189,3109.3,3109.0,0.90699264]
[1763400964819,0.189,3109.3,3108.7,1.01513047]
[1763400964820,0.6744,3109.3,3108.7,1.01513047]
[1763400965122,0.6744,3109.3,3108.6,0.001]
[1763400965297,0.6744,3109.3,3108.6,0.03316882]
[1763400965298,0.189,3109.3,3108.6,0.03316882]
[1763400965500,0.189,3109.3,3108.6,0.001]
[1763400965906,0.1956,3109.6,3108.6,0.406504]
[1763400966429,0.687,3109.6,3108.6,0.001]
[1763400966584,0.4914,3109.5,3108.6,0.001]
[1763400966927,0.405504,3109.4,3108.6,0.001]
[1763400967302,0.4914,3109.3,3108.6,0.001]
[1763400968629,0.405504,3109.2,3107.0,0.001]
[1763400968928,0.405504,3109.0,3107.1,0.1922]
[1763400969300,0.4914,3108.9,3107.1,0.1922]
[1763400969502,0.4914,3108.9,3107.2,0.03218331]
[1763400969703,0.4914,3108.9,3107.3,0.405504]
[1763400970236,0.4914,3108.9,3107.1,0.1922]
[1763400971226,0.4914,3108.9,3107.2,0.405504]
[1763400971434,0.4914,3108.9,3107.3,0.51298228]
[1763400971600,0.4914,3108.9,3107.4,0.18254789]
[1763400971831,0.4914,3108.9,3107.2,0.90699264]
[1763400972265,0.405504,3108.8,3107.0,0.001]
[1763400972860,0.4914,3108.7,3107.1,0.1922]
[1763400973090,0.4914,3108.7,3107.2,0.405504]
[1763400973233,0.4914,3108.7,3107.2,1.31249664]
[1763400973431,0.4914,3108.7,3107.4,0.405504]
[1763400973669,0.4914,3108.7,3108.5,0.001]
[1763400974575,0.4914,3108.7,3108.2,0.001]
[1763400974734,0.4914,3108.7,3107.9,0.001]
[1763400974735,0.405504,3108.6,3107.9,0.001]
[1763400975062,0.405504,3108.6,3106.6,0.03318953]
[1763400975376,0.405504,3108.4,3106.6,0.001]
[1763400975756,0.405504,3108.2,3106.6,0.001]
[1763400975955,0.4914,3108.3,3106.6,0.001]
[1763400976148,0.1956,3109.1,3106.6,0.001]
[1763400976149,0.405504,3108.1,3106.6,0.001]
[1763400976681,0.4914,3108.0,3106.6,0.001]
[1763400977085,0.4914,3108.0,3106.6,0.03318953]
[1763400977292,0.4914,3108.0,3106.6,0.001]
[1763400978107,0.1956,3109.1,3107.1,0.1813]
[1763400978413,0.4717,3109.0,3107.2,1.34467995]
[1763400978715,0.1956,3109.1,3107.8,1.31249664]
[1763400979064,0.4717,3109.4,3108.0,0.405504]
[1763400979369,0.4717,3109.4,3107.8,0.4934]
[1763400979665,0.4717,3109.4,3107.5,0.405504]
[1763400979975,0.4717,3109.4,3107.7,0.405504]
[1763400980201,0.4717,3109.4,3107.7,0.898904]
[1763400980680,0.4717,3109.4,3107.8,0.4934]
[1763400980874,0.4717,3109.4,3107.5,0.405504]
[1763400981289,0.4717,3109.4,3107.6,0.4934]
[1763400981459,0.4717,3109.4,3107.5,0.4934]
[1763400981664,0.4717,3109.4,3107.6,0.18058966]
[1763400982081,0.4717,3109.4,3107.7,0.405504]
[1763400982378,0.405504,3109.3,3107.6,0.18058966]
[1763400982701,0.1804,3107.7,3107.0,0.001]
[1763400982872,0.1804,3108.3,3107.2,0.898904]
[1763400983073,0.1804,3108.5,3107.6,0.405504]
[1763400983272,0.1804,3108.5,3107.0,0.001]
[1763400983479,0.4717,3108.4,3107.2,0.405504]
[1763400983799,0.4717,3108.4,3107.2,0.898904]
[1763400984006,0.4717,3108.4,3107.0,0.001]
[1763400985002,0.4717,3108.4,3107.1,9.44547423]
[1763400985301,0.4717,3108.4,3107.1,10.25816165]
[1763400985501,0.4717,3108.4,3107.2,0.90699264]
[1763400986001,0.4717,3108.4,3107.1,0.99398742]
[1763400986186,0.4717,3108.4,3107.0,0.001]
[1763400987293,0.405504,3108.3,3107.0,0.001]
[1763400987732,0.405504,3108.1,3107.0,0.001]
[1763400987940,0.4717,3108.2,3107.0,0.001]
[1763400988092,0.1804,3108.5,3107.0,0.001]
[1763400988093,0.4717,3108.1,3107.0,0.001]
[1763400988839,0.405504,3108.0,3107.0,0.001]
[1763400989432,0.4717,3107.9,3107.0,0.001]
[1763400989591,0.405504,3107.8,3107.0,0.001]
[1763400989995,0.405504,3107.6,3107.0,0.001]
[1763400990400,0.4717,3107.5,3107.0,0.001]
[1763400992140,0.2852,3107.1,3107.0,0.001]
[1763400992737,0.4698,3107.5,3107.0,0.001]
[1763400992900,0.2871,3107.1,3107.0,0.001]
[1763400993243,0.4698,3107.5,3107.0,0.001]
[1763400994441,0.405504,3107.9,3107.0,0.001]
[1763400994442,0.4717,3107.9,3107.0,0.001]
[1763400994761,0.4717,3108.3,3107.1,0.1813]
[1763400995134,0.1824,3108.5,3107.4,0.90699264]
[1763400995334,0.6541,3108.5,3107.5,1.01711669]
[1763400995660,0.6541,3108.5,3107.7,9.26417423]
[1763400995661,0.002,3108.5,3107.7,9.26417423]
[1763400995958,0.002,3108.5,3107.5,1.51471669]
[1763400995959,0.002,3108.5,3108.4,0.1893]
[1763400996121,0.002,3108.5,3108.4,0.6869]
[1763400996523,0.002,3108.5,3108.4,0.1893]
[1763400997555,0.002,3108.5,3108.4,0.1893]
[1763400997754,0.002,3108.5,3108.4,0.6869]
[1763400999437,0.002,3108.9,3108.4,1.092404]
[1763400999634,0.002,3108.9,3108.8,10.17116687]
[1763400999836,0.002,3108.9,3108.8,11.68588356]
[1763401000171,0.002,3109.2,3108.9,1.31249664]
[1763401000463,0.1885,3111.0,3108.9,1.81009664]
[1763401000663,0.1885,3111.0,3109.7,0.90699264]
[1763401000664,0.4806,3110.9,3109.7,0.90699264]
[1763401001439,0.1885,3111.0,3109.8,0.4976]
[1763401001963,0.1885,3111.0,3110.1,0.90699264]
[1763401002163,0.1885,3111.0,3110.2,1.21141669]
[1763401002338,0.4806,3111.5,3110.3,0.90699264]
[1763401002936,0.4806,3111.5,3110.0,0.1943]
[1763401003729,0.4806,3111.5,3110.0,0.6919]
[1763401004579,0.4806,3111.5,3110.1,0.4976]
[1763401005151,0.4806,3111.5,3110.2,0.405504]
[1763401005662,0.4806,3111.5,3110.3,0.4976]
[1763401006486,0.4806,3111.5,3109.6,0.405504]
[1763401006487,0.3867,3110.4,3109.7,0.1943]
[1763401006642,0.1885,3110.7,3109.7,0.6919]
[1763401006841,0.1885,3110.7,3109.7,0.1943]
[1763401007143,0.4806,3110.6,3109.5,0.1943]
[1763401007476,0.3867,3109.6,3108.3,0.4976]
[1763401007644,0.1313,3109.6,3108.4,1.01847609]
[1763401007843,0.4806,3109.5,3107.7,9.99546093]
[1763401008040,0.1313,3109.6,3108.3,0.90699264]
[1763401008239,0.4806,3109.5,3108.3,0.90699264]
[1763401008439,0.1313,3109.6,3108.3,0.90699264]
[1763401008440,0.1313,3109.6,3108.4,1.53808536]
[1763401008857,0.1313,3109.6,3108.5,0.4976]
[1763401009683,0.4806,3109.5,3108.4,1.04048536]
[1763401009903,0.1313,3109.6,3108.5,0.4976]
[1763401010608,0.6119,3109.6,3108.5,0.4976]
[1763401010918,0.6119,3109.6,3108.4,0.4976]
[1763401011119,0.6119,3109.6,3107.9,0.4976]
[1763401011120,0.4806,3109.5,3107.9,0.4976]
[1763401011292,0.405504,3109.4,3107.9,0.4976]
[1763401011707,0.4806,3109.4,3107.8,0.90699264]
[1763401011909,0.405504,3109.3,3107.6,0.4976]
[1763401012219,0.405504,3109.3,3107.3,0.90699264]
[1763401012220,0.1313,3109.6,3108.1,0.1943]
[1763401012518,0.4806,3109.5,3108.1,0.6919]
[1763401013015,0.4806,3109.5,3108.2,0.4976]
[1763401014207,0.4806,3109.5,3108.1,0.1943]
[1763401014444,0.405504,3109.4,3107.8,0.90699264]
[1763401014608,0.405504,3109.4,3107.9,1.04048536]
[1763401014810,0.4806,3109.3,3108.0,0.4976]
[1763401015307,0.1313,3109.6,3108.3,0.90699264]
[1763401015507,0.1313,3109.6,3108.1,0.1943]
[1763401015747,0.6119,3109.6,3108.1,0.6919]
[1763401016118,0.4806,3109.5,3108.1,0.6919]
[1763401016911,0.4806,3109.5,3108.1,0.1943]
[1763401018548,0.4806,3109.5,3108.2,0.4976]
[1763401018922,0.1313,3109.9,3108.4,9.49786093]
[1763401019149,0.1313,3109.9,3108.7,0.90699264]
[1763401019447,0.4806,3109.8,3108.5,0.95300329]
[1763401019652,0.4806,3109.8,3108.6,0.4976]
[1763401020056,0.1313,3109.9,3108.6,0.4976]
[1763401020453,0.1313,3109.9,3108.7,0.90699264]
[1763401020614,0.1885,3110.7,3108.8,0.4976]
[1763401020818,0.4806,3110.6,3109.2,0.90699264]
[1763401021015,0.4806,3110.6,3109.3,1.73238536]
[1763401021314,0.4806,3110.6,3108.9,0.4976]
[1763401021636,0.405504,3110.5,3108.9,0.4976]
[1763401022040,0.4806,3110.4,3108.9,0.4976]
[1763401022623,0.405504,3110.3,3108.9,0.4976]
[1763401023051,0.4806,3110.2,3108.9,0.4976]
[1763401023365,0.4806,3110.2,3108.5,0.4976]
[1763401023366,0.405504,3110.1,3108.5,0.4976]
[1763401023856,0.405504,3110.1,3108.2,0.90699264]
[1763401023857,0.405504,3109.9,3108.2,0.90699264]
[1763401024159,0.405504,3109.9,3108.1,10.18976093]
[1763401024160,0.4806,3110.0,3108.7,0.90699264]
[1763401024455,0.1313,3109.8,3108.8,0.4976]
[1763401024660,0.4806,3110.4,3108.8,0.4976]
[1763401024863,0.6691,3110.7,3109.2,0.90699264]
[1763401025032,0.6691,3110.7,3109.3,1.04048536]
[1763401025357,0.002,3112.2,3109.7,0.90699264]
[1763401025358,0.6691,3110.9,3109.7,0.90699264]
[1763401025657,0.002,3109.8,3109.7,0.90699264]
[1763401025957,0.4628,3111.8,3109.8,0.90699264]
[1763401026154,0.002,3112.2,3109.9,1.55352536]
[1763401026155,0.4628,3111.4,3109.9,1.55352536]
[1763401026454,0.4628,3111.4,3109.9,1.08712536]
[1763401026662,0.4628,3111.4,3109.3,0.1943]
[1763401026663,0.002,3110.2,3109.3,0.6607]
[1763401027143,0.870304,3110.2,3108.3,1.10967536]
[1763401027311,0.1836,3109.4,3108.3,1.10967536]
[1763401027519,0.0967,3108.6,3108.1,0.001]
[1763401027711,0.405504,3109.3,3108.1,0.1827]
[1763401027949,0.4628,3109.2,3108.1,0.1827]
[1763401028374,0.405504,3109.1,3108.1,0.1827]
[1763401028558,0.1836,3108.6,3108.1,0.001]
[1763401029458,0.1836,3108.9,3108.1,0.1827]
[1763401029669,0.6464,3108.9,3108.1,0.1827]
[1763401030003,0.6464,3108.9,3108.1,0.001]
[1763401030159,0.4628,3108.8,3108.1,0.001]
[1763401030694,0.4628,3108.7,3108.1,0.001]
[1763401030990,0.1836,3108.9,3108.1,0.001]
[1763401030991,0.1836,3108.9,3108.1,0.1827]
[1763401031193,0.1836,3109.4,3108.5,0.4674]
[1763401031761,0.1836,3109.7,3108.5,0.4674]
[1763401032807,0.002,3110.2,3108.7,0.90699264]
[1763401033011,0.4628,3110.1,3108.8,1.04048536]
[1763401033209,0.405504,3110.0,3108.8,1.04048536]
[1763401033692,0.1836,3109.9,3108.5,0.4674]
[1763401034012,0.405504,3109.8,3108.5,0.001]
[1763401034404,0.405504,3109.6,3108.5,0.001]
[1763401034790,0.405504,3109.4,3108.5,0.001]
[1763401035193,0.1836,3109.9,3108.5,0.001]
[1763401035194,0.4628,3109.3,3108.5,0.001]
[1763401035389,0.868304,3109.8,3108.5,0.001]
[1763401035613,0.405504,3109.6,3108.5,0.001]
[1763401035993,0.405504,3109.4,3108.5,0.001]
[1763401036982,0.405504,3109.8,3108.5,0.001]
[1763401037178,0.4848,3109.8,3108.5,0.001]
[1763401037416,0.4848,3109.8,3108.5,0.494]
[1763401038018,0.4848,3109.8,3108.6,0.493]
[1763401040233,0.1836,3109.9,3108.6,9.99086093]
[1763401040385,0.4848,3109.8,3108.7,0.99918609]
[1763401040588,0.4848,3109.8,3108.5,0.001]
[1763401041219,0.4848,3109.8,3108.5,0.494]
[1763401041528,0.4848,3109.8,3108.5,0.001]
[1763401041703,0.4848,3109.8,3108.5,0.494]
[1763401042502,0.405504,3109.7,3108.5,0.001]
[1763401042707,0.5354,3108.6,3108.5,0.001]
[1763401043202,1.0189,3108.6,3108.5,0.001]
[1763401044330,0.183,3108.9,3108.5,0.001]
[1763401044487,0.3524,3108.6,3108.5,0.001]
[1763401044893,0.8359,3108.6,3108.5,0.001]
[1763401045905,0.8359,3108.6,3108.1,0.001]
[1763401045906,1.241404,3108.6,3108.1,0.001]
[1763401046224,0.757904,3108.2,3108.1,0.001]
[1763401046739,1.241404,3108.2,3108.1,0.001]
[1763401046955,1.241404,3108.2,3107.8,0.001]
[1763401047100,0.45,3107.9,3107.8,0.001]
[1763401047484,0.9326,3107.9,3107.8,0.001]
[1763401048146,0.4848,3108.5,3107.8,0.001]
[1763401048307,0.183,3108.9,3107.8,0.001]
[1763401048505,0.6678,3108.9,3107.8,0.001]
[1763401048708,0.405504,3108.8,3107.8,0.001]
[1763401049021,0.4848,3108.8,3107.8,0.001]
[1763401051633,0.183,3107.9,3107.8,0.001]
[1763401051999,0.183,3108.2,3107.8,0.001]
[1763401052195,0.183,3107.9,3107.8,0.001]
[1763401052396,0.888104,3108.6,3107.8,0.001]
[1763401052735,0.4826,3108.6,3107.8,0.001]
[1763401052894,0.4848,3108.5,3107.8,0.001]
[1763401053667,0.4848,3108.7,3107.8,0.001]
[1763401055141,0.45,3107.9,3107.8,0.001]
[1763401055463,0.9326,3107.9,3107.8,0.001]
[1763401055617,0.183,3107.9,3107.8,0.001]
[1763401055818,0.9329,3107.9,3107.8,0.001]
[1763401056368,1.338404,3107.9,3107.8,0.001]
[1763401056520,0.405504,3107.8,3106.3,0.001]
[1763401056724,0.699304,3107.1,3106.3,0.001]
[1763401056921,0.405504,3107.1,3106.3,0.001]
[1763401057171,0.863304,3107.1,3106.3,0.001]
[1763401058156,0.405504,3107.0,3106.3,0.001]
[1763401058369,0.597004,3106.7,3106.3,0.001]
[1763401058758,1.054804,3106.7,3106.3,0.001]
[1763401059676,0.405504,3106.6,3106.3,0.001]
[1763401059848,0.890204,3106.4,3106.3,0.001]